fUSD/lending_fUSD_20240804
["ID","MTS","AMOUNT","RATE_DAILY","PERIOD"]
[334132478,1722789142833,-500.0,0.00023753,9]
[334132479,1722789142843,-884.84,0.00023753,9]
[334132480,1722789142852,-331.04,0.00023753,9]
[334132481,1722789142862,-500.0,0.00023753,9]
[334132482,1722789142871,-500.0,0.00023753,9]
[334132483,1722789142881,-500.0,0.00023753,9]
[334132484,1722789142892,-580.87,0.00023753,9]
[334132485,1722789142901,-500.0,0.00023753,9]
[334132486,1722789142911,-3092.5,0.00023753,9]
[334132487,1722789142921,-1380.41,0.00023753,9]
[334132488,1722789142949,-500.0,0.00023753,9]
[334132489,1722789142959,-1525.48,0.00023753,9]
[334132490,1722789142970,-306.21,0.00023753,9]
[334132491,1722789142981,-735.29,0.00023753,9]
[334132492,1722789142990,-500.0,0.00023753,9]
[334132493,1722789143000,-1651.73,0.00023753,9]
[334132494,1722789143009,-500.0,0.00023753,9]
[334132495,1722789143019,-1424.91,0.00023753,9]
[334132496,1722789143029,-511.18,0.00023753,9]
[334132497,1722789143039,-9291.65,0.00023753,9]
[334132498,1722789143049,-500.0,0.00023753,9]
[334132499,1722789143059,-668.08,0.00023753,9]
[334132500,1722789143070,-1800.64,0.00023753,9]
[334132501,1722789143080,-1076.82,0.00023753,9]
[334132502,1722789143090,-1604.95,0.00023753,9]
[334132503,1722789143099,-696.11,0.00023753,9]
[334132504,1722789143109,-840.83,0.00023753,9]
[334132505,1722789143119,-734.28,0.00023753,9]
[334132506,1722789143129,-500.0,0.00023753,9]
[334132507,1722789143138,-500.0,0.00023753,9]
[334132508,1722789143147,-500.0,0.00023753,9]
[334132509,1722789143158,-580.56,0.00023753,9]
[334132510,1722789143167,-1654.23,0.00023753,9]
[334132511,1722789143177,-728.39,0.00023753,9]
[334132512,1722789143190,-932.72,0.00023753,9]
[334132513,1722789143199,-716.95,0.00023753,9]
[334132514,1722789143209,-652.16,0.00023753,9]
[334132515,1722789143219,-509.23,0.00023753,9]
[334132516,1722789143228,-500.0,0.00023753,9]
[334132517,1722789143240,-1421.84,0.00023753,9]
[334132518,1722789143251,-1831.37,0.00023753,9]
[334132519,1722789143262,-9159.33,0.00023753,9]
[334132520,1722789143272,-500.0,0.00023753,9]
[334132521,1722789143283,-24340.79,0.00023753,9]
[334132522,1722789143292,-500.0,0.00023753,9]
[334132523,1722789143303,-500.0,0.00023753,9]
[334132524,1722789143313,-500.0,0.00023753,9]
[334132525,1722789143323,-500.0,0.00023753,9]
[334132526,1722789143333,-500.0,0.00023753,9]
[334132527,1722789143343,-696.26,0.00023753,9]
[334132528,1722789143353,-500.0,0.00023753,9]
[334132529,1722789143363,-2392.07,0.00023753,9]
[334132530,1722789143373,-6117.15,0.00023753,9]
[334132531,1722789143383,-1134.1,0.00023753,9]
[334132532,1722789143393,-2627.33,0.00023753,9]
[334132533,1722789143402,-871.99,0.00023753,9]
[334132534,1722789143413,-771.73,0.00023753,9]
[334132535,1722789143422,-544.49,0.00023753,9]
[334132536,1722789143447,-500.0,0.00023753,9]
[334132537,1722789143458,-11888.09,0.00023753,9]
[334132538,1722789143468,-791.38,0.00023753,9]
[334132539,1722789143478,-500.0,0.00023753,9]
[334132540,1722789143488,-6002.83,0.00023753,9]
[334132541,1722789143498,-500.0,0.00023753,9]
[334132542,1722789143508,-500.0,0.00023753,9]
[334132543,1722789143518,-944.27,0.00023753,9]
[334132544,1722789143528,-1585.57,0.00023753,9]
[334132545,1722789143537,-4038.41,0.00023753,9]
[334132546,1722789143546,-608.31,0.00023753,9]
[334132547,1722789143556,-1194.13,0.00023753,9]
[334132548,1722789143566,-1646.59,0.00023753,9]
[334132549,1722789143576,-949.11,0.00023753,9]
[334132550,1722789143585,-500.0,0.00023753,9]
[334132551,1722789143595,-2124.99,0.00023753,9]
[334132552,1722789143604,-1277.47,0.00023753,9]
[334132553,1722789143613,-500.0,0.00023753,9]
[334132554,1722789143622,-2060.41,0.00023753,9]
[334132555,1722789143632,-5462.19,0.00023753,9]
[334132556,1722789143641,-1732.64,0.00023753,9]
[334132557,1722789143651,-500.0,0.00023753,9]
[334132558,1722789143660,-1091.18,0.00023753,9]
[334132559,1722789143670,-500.0,0.00023753,9]
[334132560,1722789143680,-544.49,0.00023753,9]
[334132561,1722789143690,-500.0,0.00023753,9]
[334132562,1722789143699,-500.0,0.00023753,9]
[334132563,1722789143709,-564.87,0.00023753,9]
[334132564,1722789143718,-15172.23,0.00023753,9]
[334132565,1722789143728,-4452.48,0.00023753,9]
[334132566,1722789143737,-851.31,0.00023753,9]
[334132567,1722789143752,-1441.44,0.00023753,9]
[334132568,1722789143761,-2716.36,0.00023753,9]
[334132569,1722789143771,-500.0,0.00023753,9]
[334132570,1722789143780,-584.6,0.00023753,9]
[334132571,1722789143790,-1571.23,0.00023753,9]
[334132572,1722789143799,-574.32,0.00023753,9]
[334132573,1722789143808,-500.0,0.00023753,9]
[334132574,1722789143816,-500.0,0.00023753,9]
[334132575,1722789143826,-703.47,0.00023753,9]
[334132576,1722789143835,-1021.22,0.00023753,9]
[334132577,1722789143845,-1535.24,0.00023753,9]
[334132578,1722789143854,-1291.6,0.00023753,9]
[334132579,1722789143863,-763.08,0.00023753,9]
[334132580,1722789143873,-5391.24,0.00023753,9]
[334132581,1722789143882,-1354.84,0.00023753,9]
[334132582,1722789143891,-584.33,0.00023753,9]
[334132583,1722789143900,-709.22,0.00023753,9]
[334132584,1722789143910,-500.0,0.00023753,9]
[334132585,1722789143919,-500.0,0.00023753,9]
[334132586,1722789143928,-2713.37,0.00023753,9]
[334132587,1722789143958,-2249.61,0.00023753,9]
[334132588,1722789143967,-995.02,0.00023753,9]
[334132589,1722789143976,-3893.64,0.00023753,9]
[334132590,1722789143986,-500.0,0.00023753,9]
[334132591,1722789143995,-500.0,0.00023753,9]
[334132592,1722789144004,-892.75,0.00023753,9]
[334132593,1722789144014,-605.15,0.00023753,9]
[334132594,1722789144023,-1131.9,0.00023753,9]
[334132595,1722789144033,-2837.07,0.00023753,9]
[334132596,1722789144042,-1059.61,0.00023753,9]
[334132597,1722789144051,-901.69,0.00023753,9]
[334132598,1722789144061,-873.69,0.00023753,9]
[334132599,1722789144076,-500.0,0.00023753,9]
[334132600,1722789144085,-1120.25,0.00023753,9]
[334132601,1722789144094,-1475.32,0.00023753,9]
[334132602,1722789144104,-500.0,0.00023753,9]
[334132603,1722789144113,-6849.94,0.00023753,9]
[334132604,1722789144122,-2285.11,0.00023753,9]
[334132605,1722789144132,-1520.63,0.00023753,9]
[334132606,1722789144142,-645.98,0.00023753,9]
[334132607,1722789144151,-1055.9,0.00023753,9]
[334132608,1722789144161,-500.0,0.00023753,9]
[334132609,1722789144171,-500.0,0.00023753,9]
[334132610,1722789144185,-4923.42,0.00023753,9]
[334132611,1722789144195,-1211.89,0.00023753,9]
[334132612,1722789144204,-1860.21,0.00023753,9]
[334132613,1722789144222,-500.0,0.00023753,9]
[334132614,1722789144232,-2498.66,0.00023753,9]
[334132615,1722789144242,-723.93,0.00023753,9]
[334132616,1722789144252,-2543.95,0.00023753,9]
[334132617,1722789144263,-781.57,0.00023753,9]
[334132618,1722789144272,-1395.06,0.00023753,9]
[334132619,1722789144282,-1321.62,0.00023753,9]
[334132620,1722789144291,-1624.5,0.00023753,9]
[334132621,1722789144301,-1415.76,0.00023753,9]
[334132622,1722789144310,-1413.44,0.00023753,9]
[334132623,1722789144320,-500.0,0.00023753,9]
[334132624,1722789144330,-500.0,0.00023753,9]
[334132625,1722789144340,-1456.38,0.00023753,9]
[334132626,1722789144351,-1356.63,0.00023753,9]
[334132627,1722789144360,-911.83,0.00023753,9]
[334132628,1722789144371,-500.0,0.00023753,9]
[334132629,1722789144381,-900.99,0.00023753,9]
[334132630,1722789144391,-1747.36,0.00023753,9]
[334132631,1722789144401,-2014.48,0.00023753,9]
[334132632,1722789144411,-2308.05,0.00023753,9]
[334132633,1722789144421,-500.0,0.00023753,9]
[334132634,1722789144431,-500.0,0.00023753,9]
[334132635,1722789144459,-2084.47,0.00023753,9]
[334132636,1722789144470,-3204.33,0.00023753,9]
[334132637,1722789144480,-500.0,0.00023753,9]
[334132638,1722789144490,-500.0,0.00023753,9]
[334132639,1722789144500,-782.31,0.00023753,9]
[334132640,1722789144510,-1114.5,0.00023753,9]
[334132641,1722789144520,-1467.0,0.00023753,9]
[334132642,1722789144530,-1170.79,0.00023753,9]
[334132643,1722789144540,-1027.92,0.00023753,9]
[334132644,1722789144550,-500.0,0.00023753,9]
[334132645,1722789144560,-584.12,0.00023753,9]
[334132646,1722789144569,-1503.19,0.00023753,9]
[334132647,1722789144580,-500.0,0.00023753,9]
[334132648,1722789144589,-500.0,0.00023753,9]
[334132649,1722789144599,-2370.59,0.00023753,9]
[334132650,1722789144610,-8526.84,0.00023753,9]
[334132651,1722789144619,-2115.13,0.00023753,9]
[334132652,1722789144629,-931.26,0.00023753,9]
[334132653,1722789144639,-500.0,0.00023753,9]
[334132654,1722789144648,-792.92,0.00023753,9]
[334132655,1722789144658,-500.0,0.00023753,9]
[334132656,1722789144667,-500.0,0.00023753,9]
[334132657,1722789144676,-500.0,0.00023753,9]
[334132658,1722789144685,-500.0,0.00023753,9]
[334132659,1722789144694,-500.0,0.00023753,9]
[334132660,1722789144704,-1212.39,0.00023753,9]
[334132661,1722789144713,-1614.2,0.00023753,9]
[334132662,1722789144723,-2872.78,0.00023753,9]
[334132663,1722789144732,-940.66,0.00023753,9]
[334132664,1722789144742,-500.0,0.00023753,9]
[334132665,1722789144751,-720.05,0.00023753,9]
[334132666,1722789144761,-500.0,0.00023753,9]
[334132667,1722789144770,-2278.54,0.00023753,9]
[334132668,1722789144780,-1140.48,0.00023753,9]
[334132669,1722789144789,-1064.77,0.00023753,9]
[334132670,1722789144799,-500.0,0.00023753,9]
[334132671,1722789144808,-500.0,0.00023753,9]
[334132672,1722789144818,-2298.73,0.00023753,9]
[334132673,1722789144828,-500.0,0.00023753,9]
[334132674,1722789144838,-952.32,0.00023753,9]
[334132675,1722789144847,-664.1,0.00023753,9]
[334132676,1722789144858,-1168.02,0.00023753,9]
[334132677,1722789144868,-1420.45,0.00023753,9]
[334132678,1722789144878,-735.18,0.00023753,9]
[334132679,1722789144887,-500.0,0.00023753,9]
[334132680,1722789144896,-500.0,0.00023753,9]
[334132681,1722789144905,-150.0,0.00023755,2]
[334132682,1722789144915,-150.0,0.00023767,2]
[334132683,1722789144924,-150.0,0.00023785,2]
[334132684,1722789144933,-150.0,0.00023794,2]
[334132685,1722789144961,-150.0,0.00023797,2]
[334132686,1722789144971,-150.0,0.00023798,2]
[334132687,1722789144981,-150.0,0.00023801,2]
[334132688,1722789144990,-150.0,0.00023807,2]
[334132689,1722789144999,-150.0,0.0002381,2]
[334132690,1722789145009,-193.64669932,0.00023817,2]
[334132691,1722789145019,-896.5252629,0.00023817,2]
[334132692,1722789145028,-2337.51,0.00023835,2]
[334132693,1722789145037,-500.0,0.00023835,9]
[334132694,1722789145047,-500.0,0.00023835,9]
[334132695,1722789145056,-263.19,0.00023835,9]
[334132696,1722789145066,-500.0,0.00023835,9]
[334132697,1722789145075,-500.0,0.00023835,9]
[334132698,1722789145085,-500.0,0.00023835,9]
[334132699,1722789145094,-581.41,0.00023835,9]
[334132700,1722789145103,-500.0,0.00023835,9]
[334132701,1722789145113,-500.0,0.00023835,9]
[334132702,1722789145122,-502.62,0.00023835,9]
[334132703,1722789145132,-730.08,0.00023835,9]
[334132704,1722789145142,-500.0,0.00023835,9]
[334132705,1722789145152,-588.86,0.00023835,9]
[334132706,1722789145162,-500.0,0.00023835,9]
[334132707,1722789145172,-500.0,0.00023835,9]
[334132708,1722789145184,-358.71,0.00023835,9]
[334132709,1722789145196,-500.0,0.00023835,9]
[334132710,1722789145206,-850.72,0.00023835,9]
[334132711,1722789145226,-760.21,0.00023835,9]
[334132712,1722789145236,-463.72,0.00023835,9]
[334132713,1722789145450,-626.04,0.00023835,9]
[334132714,1722789145477,-500.0,0.00023835,9]
[334132715,1722789145487,-500.0,0.00023835,9]
[334132716,1722789145498,-541.37009821,0.00023835,9]
[334132717,1722789145508,-624.03516044,0.00023835,9]
[334132718,1722789145518,-561.46,0.00023835,9]
[334132719,1722789145528,-500.0,0.00023835,9]
[334132720,1722789145537,-500.0,0.00023835,9]
[334132721,1722789145547,-500.0,0.00023835,9]
[334132722,1722789145556,-500.0,0.00023835,9]
[334132723,1722789145566,-500.0,0.00023835,9]
[334132724,1722789145576,-550.62,0.00023835,9]
[334132725,1722789145586,-500.0,0.00023835,9]
[334132726,1722789145595,-500.0,0.00023835,9]
[334132727,1722789145605,-500.0,0.00023835,9]
[334132728,1722789145615,-286.32062793,0.00023835,9]
[334132729,1722789145624,-500.0,0.00023835,9]
[334132730,1722789145634,-500.0,0.00023835,9]
[334132731,1722789145643,-500.0,0.00023835,9]
[334132732,1722789145653,-591.33,0.00023835,9]
[334132733,1722789145662,-1011.69,0.00023835,9]
[334132734,1722789145672,-511.64,0.00023835,9]
[334132735,1722789145681,-500.0,0.00023835,9]
[334132736,1722789145690,-500.0,0.00023835,9]
[334132737,1722789145699,-559.06,0.00023835,9]
[334132738,1722789145709,-702.5,0.00023835,9]
[334132739,1722789145719,-500.0,0.00023835,9]
[334132740,1722789145728,-500.0,0.00023835,9]
[334132741,1722789145737,-500.0,0.00023835,9]
[334132742,1722789145746,-646.51,0.00023835,9]
[334132743,1722789145756,-1314.76,0.00023835,9]
[334132744,1722789145765,-500.0,0.00023835,9]
[334132745,1722789145775,-500.0,0.00023835,9]
[334132746,1722789145784,-532.71,0.00023835,9]
[334132747,1722789145793,-500.0,0.00023835,9]
[334132748,1722789145802,-721.27,0.00023835,9]
[334132749,1722789145811,-500.0,0.00023835,9]
[334132750,1722789145820,-500.0,0.00023835,9]
[334132751,1722789145830,-346.4751689,0.00023835,9]
[334132752,1722789145839,-500.0,0.00023835,9]
[334132753,1722789145849,-500.0,0.00023835,9]
[334132754,1722789145858,-500.0,0.00023835,9]
[334132755,1722789145867,-540.98,0.00023835,9]
[334132756,1722789145877,-500.0,0.00023835,9]
[334132757,1722789145886,-500.0,0.00023835,9]
[334132758,1722789145895,-521.65,0.00023835,9]
[334132759,1722789145905,-831.69,0.00023835,9]
[334132760,1722789145914,-500.0,0.00023835,9]
[334132761,1722789145923,-785.3,0.00023835,9]
[334132762,1722789145933,-780.18,0.00023835,9]
[334132763,1722789145942,-500.0,0.00023835,9]
[334132764,1722789145961,-500.0,0.00023835,9]
[334132765,1722789145977,-500.0,0.00023835,9]
[334132766,1722789145986,-500.0,0.00023835,9]
[334132767,1722789145995,-500.0,0.00023835,9]
[334132768,1722789146004,-500.0,0.00023835,9]
[334132769,1722789146013,-559.95,0.00023835,9]
[334132770,1722789146022,-500.0,0.00023835,9]
[334132771,1722789146032,-1164.15,0.00023835,9]
[334132772,1722789146042,-995.62,0.00023835,9]
[334132773,1722789146052,-500.0,0.00023835,9]
[334132774,1722789146061,-500.0,0.00023835,9]
[334132775,1722789146071,-500.0,0.00023835,9]
[334132776,1722789146080,-576.22,0.00023835,9]
[334132777,1722789146090,-543.19,0.00023835,9]
[334132778,1722789146099,-500.0,0.00023835,9]
[334132779,1722789146108,-571.21333096,0.00023835,9]
[334132780,1722789146117,-500.0,0.00023835,9]
[334132781,1722789146127,-500.0,0.00023835,9]
[334132782,1722789146136,-570.66359984,0.00023835,9]
[334132783,1722789146146,-500.0,0.00023835,9]
[334132784,1722789146155,-500.0,0.00023835,9]
[334132785,1722789146165,-599.57,0.00023835,2]
[334132786,1722789146174,-500.0,0.00023835,9]
[334132787,1722789146184,-500.0,0.00023835,9]
[334132788,1722789146196,-500.0,0.00023835,9]
[334132789,1722789146206,-500.0,0.00023835,9]
[334132790,1722789146216,-500.0,0.00023835,9]
[334132791,1722789146239,-550.63,0.00023835,7]
[334132792,1722789146249,-500.0,0.00023835,9]
[334132793,1722789146258,-603.97,0.00023835,9]
[334132794,1722789146269,-500.0,0.00023835,9]
[334132795,1722789146279,-579.69,0.00023835,9]
[334132796,1722789146289,-526.37,0.00023835,9]
[334132797,1722789146298,-519.43,0.00023835,9]
[334132798,1722789146308,-500.0,0.00023835,9]
[334132799,1722789146317,-500.0,0.00023835,9]
[334132800,1722789146326,-500.0,0.00023835,9]
[334132801,1722789146336,-500.0,0.00023835,9]
[334132802,1722789146345,-500.0,0.00023835,9]
[334132803,1722789146354,-513.52,0.00023835,9]
[334132804,1722789146364,-500.0,0.00023835,9]
[334132805,1722789146373,-500.0,0.00023835,9]
[334132806,1722789146382,-545.7,0.00023835,9]
[334132807,1722789146392,-500.0,0.00023835,9]
[334132808,1722789146402,-500.0,0.00023835,9]
[334132809,1722789146412,-500.0,0.00023835,9]
[334132810,1722789146421,-500.0,0.00023835,9]
[334132811,1722789146431,-500.0,0.00023835,9]
[334132812,1722789146440,-500.0,0.00023835,9]
[334132813,1722789146451,-500.0,0.00023835,9]
[334132814,1722789146477,-500.0,0.00023835,9]
[334132815,1722789146486,-500.0,0.00023835,9]
[334132816,1722789146496,-572.51,0.00023835,9]
[334132817,1722789146506,-500.0,0.00023835,9]
[334132818,1722789146515,-500.0,0.00023835,9]
[334132819,1722789146525,-500.0,0.00023835,9]
[334132820,1722789146534,-589.88,0.00023835,9]
[334132821,1722789146543,-500.0,0.00023835,9]
[334132822,1722789146553,-500.0,0.00023835,9]
[334132823,1722789146562,-500.0,0.00023835,9]
[334132824,1722789146571,-500.0,0.00023835,9]
[334132825,1722789146580,-500.0,0.00023835,9]
[334132826,1722789146589,-643.51,0.00023835,9]
[334132827,1722789146598,-500.0,0.00023835,9]
[334132828,1722789146608,-531.27,0.00023835,9]
[334132829,1722789146617,-500.0,0.00023835,9]
[334132830,1722789146627,-500.0,0.00023835,9]
[334132831,1722789146637,-672.45,0.00023835,9]
[334132832,1722789146647,-500.0,0.00023835,9]
[334132833,1722789146656,-500.0,0.00023835,9]
[334132834,1722789146666,-500.0,0.00023835,9]
[334132835,1722789146675,-500.0,0.00023835,9]
[334132836,1722789146685,-500.0,0.00023835,9]
[334132837,1722789146694,-500.0,0.00023835,9]
[334132838,1722789146704,-500.0,0.00023835,9]
[334132839,1722789146714,-500.0,0.00023835,9]
[334132840,1722789146724,-500.0,0.00023835,9]
[334132841,1722789146734,-500.0,0.00023835,9]
[334132842,1722789146743,-500.0,0.00023835,9]
[334132843,1722789146753,-500.0,0.00023835,9]
[334132844,1722789146762,-558.03,0.00023835,9]
[334132845,1722789146771,-500.0,0.00023835,9]
[334132846,1722789146781,-864.98,0.00023835,9]
[334132847,1722789146791,-510.16,0.00023835,9]
[334132848,1722789146800,-522.61,0.00023835,9]
[334132849,1722789146810,-1944.23,0.00023835,9]
[334132850,1722789146821,-500.0,0.00023835,9]
[334132851,1722789146830,-500.0,0.00023835,9]
[334132852,1722789146840,-500.0,0.00023835,9]
[334132853,1722789146850,-500.0,0.00023835,9]
[334132854,1722789146860,-500.0,0.00023835,9]
[334132855,1722789146870,-500.0,0.00023835,9]
[334132856,1722789146879,-500.0,0.00023835,9]
[334132857,1722789146888,-500.0,0.00023835,9]
[334132858,1722789146898,-500.0,0.00023835,9]
[334132859,1722789146906,-634.47,0.00023835,9]
[334132860,1722789146916,-500.0,0.00023835,9]
[334132861,1722789146925,-500.0,0.00023835,9]
[334132862,1722789146935,-500.0,0.00023835,9]
[334132863,1722789146944,-546.11,0.00023835,9]
[334132864,1722789146953,-500.0,0.00023835,9]
[334132865,1722789146979,-500.0,0.00023835,9]
[334132866,1722789146988,-226.94,0.00023835,9]
[334132867,1722789146998,-544.54,0.00023835,9]
[334132868,1722789147007,-500.0,0.00023835,9]
[334132869,1722789147017,-500.0,0.00023835,9]
[334132870,1722789147026,-500.0,0.00023835,9]
[334132871,1722789147035,-500.0,0.00023835,9]
[334132872,1722789147044,-213.98,0.00023835,9]
[334132873,1722789147053,-500.0,0.00023835,9]
[334132874,1722789147062,-500.0,0.00023835,9]
[334132875,1722789147071,-606.8,0.00023835,9]
[334132876,1722789147080,-500.0,0.00023835,9]
[334132877,1722789147090,-593.44,0.00023835,9]
[334132878,1722789147099,-500.0,0.00023835,9]
[334132879,1722789147109,-432.32,0.00023835,9]
[334132880,1722789147118,-500.0,0.00023835,9]
[334132881,1722789147127,-607.33,0.00023835,9]
[334132882,1722789147136,-500.0,0.00023835,9]
[334132883,1722789147147,-500.0,0.00023835,9]
[334132884,1722789147156,-500.0,0.00023835,9]
[334132885,1722789147167,-500.0,0.00023835,9]
[334132886,1722789147177,-447.28,0.00023835,9]
[334132887,1722789147189,-500.0,0.00023835,9]
[334132888,1722789147198,-500.0,0.00023835,9]
[334132889,1722789147208,-500.0,0.00023835,9]
[334132890,1722789147217,-500.0,0.00023835,9]
[334132891,1722789147227,-528.21,0.00023835,9]
[334132892,1722789147236,-500.0,0.00023835,9]
[334132893,1722789147245,-500.0,0.00023835,9]
[334132894,1722789147255,-569.32,0.00023835,9]
[334132895,1722789147267,-500.0,0.00023835,9]
[334132896,1722789147277,-500.0,0.00023835,9]
[334132897,1722789147287,-523.37,0.00023835,9]
[334132898,1722789147296,-500.0,0.00023835,9]
[334132899,1722789147305,-500.0,0.00023835,9]
[334132900,1722789147315,-500.0,0.00023835,9]
[334132901,1722789147325,-6008.74,0.00023835,9]
[334132902,1722789147334,-500.0,0.00023835,9]
[334132903,1722789147343,-500.0,0.00023835,9]
[334132904,1722789147353,-395.02,0.00023835,9]
[334132905,1722789147362,-500.0,0.00023835,9]
[334132906,1722789147371,-2039.61,0.00023835,9]
[334132907,1722789147381,-500.0,0.00023835,9]
[334132908,1722789147390,-500.0,0.00023835,9]
[334132909,1722789147400,-3717.54,0.00023835,9]
[334132910,1722789147409,-500.0,0.00023835,9]
[334132911,1722789147418,-884.84,0.00023835,9]
[334132912,1722789147428,-500.0,0.00023835,9]
[334132913,1722789147437,-500.0,0.00023835,9]
[334132914,1722789147446,-500.0,0.00023835,9]
[334132915,1722789147456,-580.87,0.00023835,9]
[334132916,1722789147472,-500.0,0.00023835,9]
[334132917,1722789147481,-3092.5,0.00023835,9]
[334132918,1722789147496,-1380.41,0.00023835,9]
[334132919,1722789147505,-500.0,0.00023835,9]
[334132920,1722789147514,-1525.48,0.00023835,9]
[334132921,1722789147523,-735.29,0.00023835,9]
[334132922,1722789147533,-500.0,0.00023835,9]
[334132923,1722789147543,-1651.73,0.00023835,9]
[334132924,1722789147552,-617.72,0.00023835,9]
[334132925,1722789147561,-1424.91,0.00023835,9]
[334132926,1722789147572,-511.18,0.00023835,9]
[334132927,1722789147582,-9291.65,0.00023835,9]
[334132928,1722789147591,-500.0,0.00023835,9]
[334132929,1722789147601,-668.08,0.00023835,9]
[334132930,1722789147611,-1800.64,0.00023835,9]
[334132931,1722789147620,-1076.82,0.00023835,9]
[334132932,1722789147631,-1604.95,0.00023835,9]
[334132933,1722789147641,-696.11,0.00023835,9]
[334132934,1722789147651,-840.83,0.00023835,9]
[334132935,1722789147661,-734.28,0.00023835,9]
[334132936,1722789147670,-500.0,0.00023835,9]
[334132937,1722789147681,-500.0,0.00023835,9]
[334132938,1722789147690,-500.0,0.00023835,9]
[334132939,1722789147700,-580.56,0.00023835,9]
[334132940,1722789147710,-1654.23,0.00023835,9]
[334132941,1722789147719,-728.39,0.00023835,9]
[334132942,1722789147729,-932.72,0.00023835,9]
[334132943,1722789147738,-716.95,0.00023835,9]
[334132944,1722789147747,-652.16,0.00023835,9]
[334132945,1722789147757,-509.23,0.00023835,9]
[334132946,1722789147766,-500.0,0.00023835,9]
[334132947,1722789147775,-1421.84,0.00023835,9]
[334132948,1722789147785,-1831.37,0.00023835,9]
[334132949,1722789147795,-9159.33,0.00023835,9]
[334132950,1722789147804,-500.0,0.00023835,9]
[334132951,1722789147814,-24340.79,0.00023835,9]
[334132952,1722789147823,-500.0,0.00023835,9]
[334132953,1722789147833,-500.0,0.00023835,9]
[334132954,1722789147842,-500.0,0.00023835,9]
[334132955,1722789147852,-294.49,0.00023835,9]
[334132956,1722789147860,-500.0,0.00023835,9]
[334132957,1722789147869,-696.26,0.00023835,9]
[334132958,1722789147878,-562.22190257,0.00023835,9]
[334132959,1722789147887,-2392.07,0.00023835,9]
[334132960,1722789147896,-6117.15,0.00023835,9]
[334132961,1722789147905,-1134.1,0.00023835,9]
[334132962,1722789147914,-2627.33,0.00023835,9]
[334132963,1722789147923,-871.99,0.00023835,9]
[334132964,1722789147932,-771.73,0.00023835,9]
[334132965,1722789147942,-544.49,0.00023835,9]
[334132966,1722789147951,-500.0,0.00023835,9]
[334132967,1722789147968,-11888.09,0.00023835,9]
[334132968,1722789147978,-791.38,0.00023835,9]
[334132969,1722789147987,-500.0,0.00023835,9]
[334132970,1722789148002,-6002.83,0.00023835,9]
[334132971,1722789148011,-500.0,0.00023835,9]
[334132972,1722789148020,-311.48,0.00023835,9]
[334132973,1722789148030,-944.27,0.00023835,9]
[334132974,1722789148039,-1585.57,0.00023835,9]
[334132975,1722789148048,-4038.41,0.00023835,9]
[334132976,1722789148058,-608.31,0.00023835,9]
[334132977,1722789148067,-1194.13,0.00023835,9]